[Event "CZE-ch U16 Open 2023"]
[Site "Teplice"]
[Date "2023.03.13"]
[Round "3.2"]
[White "Fizer, Marek"]
[Black "Werner, Hong Quan Dan"]
[Result "1-0"]
[ECO "B30"]
[WhiteElo "1929"]
[BlackElo "2085"]
[Annotator "TA"]
[PlyCount "83"]
[EventDate "2023.03.09"]
[EventType "swiss"]
[EventCountry "CZE"]
[SourceTitle "playchess.com"]
[Source "ChessBase"]
[SourceQuality "1"]
[TimeControl "40/5400+30:1800+30"]

{[%evp 10,83,23,10,17,-32,26,25,93,-17,-4,-8,-13,-17,-21,-31,21,-17,35,8,11,-4,16,3,12,-27,19,19,16,0,0,-77,-79,-147,-141,-187,-178,-476,0,0,0,-345,0,-218,-226,-225,-218,-218,188,173,588,573,539,239,450,389,731,728,708,730,710,718,721,710,685,364,364,371,377,380,1137,1158,1141,1073,1226,1205]} 1. e4 {[%emt 0:00:07]} c5 {[%emt 0:00:30]} 2. Nf3 {[%emt 0:00:12]} Nc6 {[%emt 0:00:24]} 3. Nc3 {[%emt 0:00:24]} e5 {[%emt 0:08:11]} 4. Bc4 {[%emt 0:01:22]} Be7 {[%emt 0:00:34]} 5. d3 {[%emt 0:00:53]} Nf6 {[%emt 0:01:35]} 6. Ng5 {[%emt 0:04:54]} O-O {[%emt 0:03:50] B30: Sicilian: 2...Nc6 3 Bb5, lines without ...g6.} 7. h4 $1 {[%emt 0:01:52][%mdl 4] is recently more successful than 7.f4.} (7. O-O $11 {feels stronger.}) 7... h6 {[%emt 0:03:09]} (7... Na5 $1 $15) 8. Nd5 $1 $11 {[%emt 0:07:45] [#] aiming for Nxf6+.} b5 $146 {[%emt 0:03:28]} (8... hxg5 $2 9. hxg5 g6 10. gxf6 Bxf6 11. Qf3 $18) (8... Nd4 $11) ({Predecessor:} 8... Nxd5 9. Bxd5 Nb4 10. Bb3 d5 11. a3 c4 12. dxc4 dxc4 13. Bxc4 Qxd1+ 14. Kxd1 hxg5 15. axb4 gxh4 {1-0 Sasikiran,K (2675)-Harika,D (2495) FIDE Chess.com Grand Swiss 2019 (3)}) 9. Bb3 {[%emt 0:00:30] White has more active pieces. The black rooks are badly placed.} (9. Nxf6+ $1 $16 Bxf6 10. Bd5) 9... Nd4 {[%emt 0:05:04]} (9... hxg5 $2 10. hxg5 g6 11. gxf6 Bxf6 12. Qf3 $18) 10. Nxf6+ $1 {[%emt 0:04:58]} Bxf6 {[%emt 0:00:19]} 11. Bd5 {[%emt 0:01:11] Against Bb7} Rb8 {[%emt 0:00:16]} 12. Qh5 {[%emt 0:16:31][%cal Rg5f7]} Ne6 {[%emt 0:04:08]} (12... hxg5 13. hxg5 Qa5+ 14. Kf1) (12... Qe8 $15 13. Kd1 Bb7) 13. Be3 {[%emt 0:03:23]} d6 {[%emt 0:01:49] [#]} (13... hxg5 14. hxg5 Qa5+ 15. c3) ({Better is} 13... c4 $11) 14. g3 $1 {[%emt 0:04:00]} Qe8 {[%emt 0:20:51]} (14... hxg5 15. hxg5 Qa5+ 16. c3) 15. O-O-O {[%emt 0:18:10]} Bb7 {[%emt 0:05:47] [#]} (15... hxg5 $2 16. hxg5 g6 17. Qh7#) 16. Qg4 $1 {[%emt 0:03:56][%cal Rg5e6]} Bc8 {[%emt 0:08:04]} (16... hxg5 17. hxg5 Bxg5 18. Qh3 $16 (18. Bxg5 f5 $16)) 17. Qh5 {[%emt 0:01:58]} Bb7 {[%emt 0:00:22]} (17... hxg5 $2 18. hxg5 g6 19. Qh7#) (17... Bd7 $142) 18. Bxb7 {[%emt 0:03:32]} Rxb7 {[%emt 0:00:07]} 19. f4 {[%emt 0:02:20][%cal Of4f5]} b4 {[%emt 0:04:32]} (19... hxg5 $2 20. hxg5 exf4 21. Qh8#) 20. f5 {[%emt 0:07:41]} (20. Kb1 $11 {keeps the balance.}) 20... Nd4 $17 {[%emt 0:00:44]} 21. Bxd4 {[%emt 0:01:23]} (21. b3 $142) 21... cxd4 {[%emt 0:03:18]} (21... exd4 22. b3 $11) 22. Kb1 {[%emt 0:01:56]} (22. b3 $17 {was called for.}) 22... Qa4 $19 {[%emt 0:02:28]} 23. g4 $2 {[%emt 0:04:24]} (23. b3 Qa3 24. Ka1) 23... Rc8 $2 {[%emt 0:03:36]} (23... hxg5 24. hxg5) (23... Rb5 $19 {Hoping for ...Ra5.} 24. Nh7 (24. b3 $2 Qa3 $19) 24... Kxh7) 24. Rh2 $40 {[%emt 0:01:45][%mdl 128] White has some attack.} Rc6 {[%emt 0:00:43] And now ...Ra6 would win.} (24... hxg5 $2 25. hxg5 Kf8 26. gxf6 $18) 25. Nf3 $2 {[%emt 0:02:46][%mdl 8192] White is weak on the dark squares} (25. b3 $11 {and White has nothing to worry.} Qa3 26. Nf3) 25... Rbc7 $2 {[%emt 0:04:22]} (25... Ra6 $19 26. Kc1 Qxa2) 26. Ne1 $2 {[%emt 0:01:08]} (26. g5 Rxc2 27. Rg1 Rxh2 28. Nxd4 Rxb2+ 29. Kxb2 Qa3+ 30. Kb1 Qxd3+) (26. b3 $1 $11 Qa3 27. g5) 26... Ra6 $19 {[%emt 0:01:50]} 27. g5 {[%emt 0:02:08] Strongly threatening Kc1.} Qxa2+ {[%emt 0:06:12]} 28. Kc1 {[%emt 0:00:06] [#]} Rac6 $4 {[%emt 0:04:40][%mdl 8192]} 29. gxf6 $18 {[%emt 0:01:12] Rg2 is the strong threat.} Qa1+ $2 {[%emt 0:01:05]} (29... d5) 30. Kd2 Qxb2 {[%emt 0:00:04][%cal Rc6c2] Threatens to win with ...Rxc2+.} 31. Rc1 {[%emt 0:01:32]} (31. Qg4 $142 {[%csl Gf6][%cal Rg4g7]} g5 32. fxg6 Rxc2+ 33. Nxc2 Qxc2+ 34. Ke1 Qxh2 35. gxf7+ Kxf7 36. Qg7+ {[%mdl 64] Skewer, Double Attack} Ke8 37. Qxc7 Qxh4+ 38. Kd2 Qxf6 39. Qb8+ Qd8 40. Qxb4) 31... b3 $2 {[%emt 0:00:15] [#]} (31... Qc3+ {is a better defense.} 32. Kd1 d5) 32. Qg4 $1 {[%emt 0:00:57][%csl Gf6][%cal Rg4g7]} (32. Kd1 bxc2+ 33. Rhxc2 Rxc2 34. Nxc2 (34. Rxc2 Qa1+ 35. Kd2 Rxc2+ 36. Nxc2 Qc3+ 37. Kc1 gxf6 $11) 34... Kh7 $11) 32... Kf8 {[%emt 0:02:58]} (32... Rxc2+ 33. Rxc2 Rxc2+ 34. Nxc2 Qxc2+ 35. Ke1 Qc1+ 36. Kf2 Qd2+ 37. Kg1 Qc1+ 38. Kg2 Qc2+ 39. Kg1 Qb1+ 40. Kg2 Qc2+ 41. Kf1 Qb1+ 42. Kg2 Qc2+) 33. Qxg7+ {[%emt 0:00:44]} (33. fxg7+ Kg8 34. f6 (34. Kd1 $2 Ra6 $19) 34... a5 $15) 33... Ke8 {[%emt 0:00:03]} 34. Qg8+ {[%emt 0:00:22][%mdl 64] Deflection} (34. Qxh6 Qa2 35. Ke2 b2 $15) 34... Kd7 {[%emt 0:00:04]} 35. Qxf7+ {[%emt 0:00:06]} Kc8 {[%emt 0:00:03]} 36. Qe6+ {[%emt 0:00:28]} Kb7 {[%emt 0:00:13]} 37. Qxb3+ {[%emt 0:00:37]} ({Worse is} 37. f7 Rxc2+ 38. Nxc2 Rxc2+ 39. Rxc2 Qxc2+ 40. Ke1 Qc1+ 41. Kf2 Qe3+ 42. Kg2 Qd2+ 43. Kh3 Qxd3+ 44. Kg2 (44. Kg4 Qd1+ 45. Kg3 Qd3+ 46. Kf2 Qc2+ 47. Kg3 Qd3+ 48. Kg4 Qd1+ 49. Kg3 Qd3+ $11) 44... Qxe4+ 45. Kg3 (45. Kf2 Qc2+ 46. Kg3 Qd3+ 47. Kg4 Qd1+ 48. Kg3 Qd3+ 49. Kg4 Qd1+ 50. Kg3 Qd3+ $11) 45... Qf4+ 46. Kg2 Qe4+ 47. Kg3 (47. Kf2 Qc2+ 48. Kg3 Qd3+ 49. Kg4 Qd1+ 50. Kg3 Qd3+ 51. Kg4 Qd1+ 52. Kg3 Qd3+ $11) 47... Qf4+ 48. Kg2 Qe4+ $11) 37... Qxb3 {[%emt 0:00:03]} 38. cxb3 {[%emt 0:00:04]} Rxc1 {[%emt 0:00:05]} 39. f7 $1 {[%emt 0:00:06]} Ra1 $2 {[%emt 0:01:00]} (39... Rxe1 40. f8=Q (40. f8=R $2 {is the wrong capture.} Rec1 $19) 40... Rec1) 40. f8=Q {[%emt 0:00:10] White is clearly winning.} (40. f8=R $2 {loses.} Ra2+ 41. Kd1 Rxh2 $19) 40... Ra2+ {[%emt 0:00:06]} 41. Kd1 {[%emt 0:30:11]} Rxh2 {[%emt 0:30:37]} 42. Qxd6 {[%emt 0:00:24] A brilliant game!   Weighted Error Value: White=0.74/Black=1.00} 1-0

[Event "CZE-ch U16 Open 2023"]
[Site "Teplice"]
[Date "2023.03.13"]
[Round "3.3"]
[White "Pelc, Adam"]
[Black "Seidl, Jan"]
[Result "0-1"]
[ECO "A05"]
[WhiteElo "1871"]
[BlackElo "2025"]
[Annotator "TA"]
[PlyCount "144"]
[EventDate "2023.03.09"]
[EventType "swiss"]
[EventCountry "CZE"]
[SourceTitle "playchess.com"]
[Source "ChessBase"]
[SourceQuality "1"]
[TimeControl "40/5400+30:1800+30"]

{[%evp 19,144,19,22,7,24,19,41,17,21,7,50,18,21,23,25,17,102,32,33,0,46,34,42,52,51,51,85,104,81,69,146,90,97,0,109,0,101,83,102,17,81,16,15,25,36,39,28,37,31,27,63,42,111,63,114,112,82,53,41,-9,0,-50,0,0,0,0,134,-262,-264,-333,-333,-325,-325,-314,-308,-293,-275,-308,-308,-308,-265,-896,-844,-3254,-3000,-2086,-1814,-29972,-29972,-29970,-29965,-29981,-29982,-29982,-29983,-29983,-29984,-29984,-29985,-29985,-29986,-29986,-29987,-29987,-858,-605,-605,-29954,-29959,-658,-456,-29967,-29968,-29968,-29970,-29969,-29971,-29970,-29972,-29971,-29971,-29990,-29991,-29991,-29992,-29992,-1606]} 1. Nf3 {[%emt 0:00:15]} Nf6 {[%emt 0:00:36]} 2. b3 {[%emt 0:01:21]} c5 {[%emt 0:00:55]} 3. Bb2 {[%emt 0:02:28]} g6 {[%emt 0:00:56]} 4. e3 {[%emt 0:03:43]} Bg7 {[%emt 0:00:16]} 5. Be2 {[%emt 0:03:50]} O-O {[%emt 0:01:31]} 6. O-O {[%emt 0:01:16]} Nc6 {[%emt 0:01:51]} 7. d4 {[%emt 0:02:54]} cxd4 {[%emt 0:00:31]} 8. Nxd4 {[%emt 0:04:42]} d6 {[%emt 0:03:49]} 9. c4 {[%emt 0:04:50]} a6 {[%emt 0:03:02]} 10. Nc3 {[%emt 0:04:49]} Bd7 {[%emt 0:02:47]} 11. a3 {[%emt 0:04:49] A35: Symmetrical English: 2 Nc3 Nc6 3 Nf3.} Rc8 {[%emt 0:01:40]} 12. Rc1 {[%emt 0:02:42] [#]} Qb6 $146 {[%emt 0:03:57]} ({Predecessor:} 12... Re8 13. h3 Nxd4 14. exd4 e5 15. dxe5 dxe5 16. Nd5 Bc6 17. Nb4 Be4 18. Qxd8 Rcxd8 {½-½ Ju,W (2501)-Huang,Q (2465) World-ch (Women) k.o. 2012 (4.5)}) 13. Na4 {[%emt 0:01:09] White is slightly better.} Qc7 {[%emt 0:10:41]} 14. b4 {[%emt 0:13:31]} e5 {[%emt 0:15:19]} 15. Nxc6 {[%emt 0:10:43]} Bxc6 {[%emt 0:00:41]} 16. b5 {[%emt 0:00:29]} Bd7 {[%emt 0:04:42]} 17. c5 {[%emt 0:11:10]} Ne4 {[%emt 0:02:56]} (17... Bxb5 $11 {remains equal.} 18. Bxb5 axb5 19. cxd6 Qd8) 18. c6 {[%emt 0:06:47]} (18. bxa6 $6 Nxc5 19. Nxc5 dxc5 $11) (18. Nb6 $16 Nxc5 19. Nxc8 Bxc8 20. Qd2) 18... bxc6 $14 {[%emt 0:07:49]} 19. b6 {[%emt 0:00:06]} Qb7 {[%emt 0:01:56]} (19... Qb8 $11 {might be stronger.}) 20. f3 {[%emt 0:06:35]} Nc5 {[%emt 0:00:18]} 21. Nxc5 {[%emt 0:04:04]} dxc5 {[%emt 0:00:09]} 22. Bc3 $36 {[%emt 0:00:46][%mdl 2048] White is pushing.} Be6 {[%emt 0:03:16]} 23. Rb1 {[%emt 0:00:24][%mdl 1024] White has strong compensation.} Rcd8 {[%emt 0:00:32]} 24. Qa4 {[%emt 0:00:30]} Bc8 {[%emt 0:00:05]} (24... Bh6 $14) 25. Qc4 {[%emt 0:02:55]} (25. Rfd1 $142) 25... Qe7 {[%emt 0:00:42]} 26. Qa4 {[%emt 0:00:35]} (26. Rfe1 $16) 26... Bb7 {[%emt 0:00:15]} (26... Qb7 $1 $11) 27. Qc4 {[%emt 0:01:27]} (27. Bxa6 $2 Ra8 28. Qe4 Bxa6 $19) (27. Bc4 $16) 27... Bh6 {[%emt 0:00:38]} (27... Bc8 $1 $11 {keeps the balance.}) 28. Kf2 {[%emt 0:01:54]} Rd5 {[%emt 0:03:33]} 29. Qe4 {[%emt 0:02:56]} (29. g3 $16) 29... f5 {[%emt 0:00:39]} (29... Bc8 $11) 30. Qa4 {[%emt 0:00:56]} (30. Qc4 $16) 30... Qg5 $11 {[%emt 0:00:23]} 31. f4 $1 {[%emt 0:00:14]} exf4 {[%emt 0:04:34]} 32. exf4 {[%emt 0:00:12]} Qxf4+ {[%emt 0:00:14]} 33. Qxf4 {[%emt 0:00:06]} Bxf4 {[%emt 0:00:04]} 34. Bc4 {[%emt 0:00:13]} Rfd8 {[%emt 0:00:33][%cal Od8d7]} 35. g3 {[%emt 0:01:26]} (35. Bxd5+ cxd5 36. Bf6 Rf8 $15) (35. Rbe1 $5 {[%cal Re1e7]} Bg5 36. Be5 $11 (36. Bxd5+ cxd5 37. Be5 Kf7 $15)) 35... Bd6 {[%emt 0:00:19]} (35... Bh6 $1 $14) 36. Bf6 {[%emt 0:00:49]} (36. Bxd5+ cxd5 37. Bd2 (37. Bf6 Rf8 $17) 37... Kf7 $17) (36. a4 $16) 36... Re8 {[%emt 0:04:35]} (36... Rf8 $14 37. Bc3 (37. Bxd5+ cxd5 38. Bb2 c4 $17) 37... Re8) 37. Rfe1 $16 {[%emt 0:00:35]} ({Weaker is} 37. Bxd5+ cxd5 38. Rbe1 Re4 39. Rxe4 fxe4 $15) 37... Kf7 {[%emt 0:00:09] aiming for ...Rxe1.} 38. Rxe8 {[%emt 0:00:22]} ({Inferior is} 38. Bxd5+ cxd5 39. Rxe8 Kxe8 $15) 38... Kxe8 {[%emt 0:00:04]} 39. Bxd5 {[%emt 0:00:11]} (39. Re1+ $14 Kd7 40. Kf3) 39... cxd5 {[%emt 0:00:05][%mdl 4096] Endgame KRB-KB} 40. Re1+ {[%emt 0:00:28]} (40. a4 $11) 40... Kf7 {[%emt 0:00:31]} ({Black should play} 40... Kd7 $15) 41. Be5 $11 {[%emt 0:30:17]} Be7 {[%emt 0:30:14]} 42. a4 {[%emt 0:00:54]} d4 {[%emt 0:01:08]} (42... Ke6 $11) 43. Bc7 $2 {[%emt 0:01:02][%mdl 8192] Loses the game.} (43. Rc1 $1 $16 {is forced if you want to stay better.}) 43... c4 $19 {[%emt 0:02:22]} 44. Rxe7+ {[%emt 0:00:00]} Kxe7 {[%emt 0:00:00] KB-KB} 45. Be5 {[%emt 0:00:00]} d3 {[%emt 0:00:00]} 46. Ke3 {[%emt 0:00:00]} Ke6 {[%emt 0:00:00]} 47. Bc3 {[%emt 0:00:00] [#]} Kd5 {[%emt 0:00:00]} 48. h4 {[%emt 0:00:00]} Kc5 {[%emt 0:00:00] Repels Bb4+} 49. a5 {[%emt 0:00:00]} h6 {[%emt 0:00:00][%cal Bh7h6,Bh6g5][%mdl 32]} 50. Bd2 $2 {[%emt 0:00:00]} (50. Kd2) 50... g5 {[%emt 0:00:00]} 51. hxg5 {[%emt 0:00:00]} hxg5 {[%emt 0:00:00][%cal Of5f4]} 52. Bc3 {[%emt 0:00:00]} Bc6 {[%emt 0:00:00]} 53. Bd2 {[%emt 0:00:00] [#]} f4+ $1 {[%emt 0:00:00][%mdl 64] Deflection} 54. gxf4 {[%emt 0:00:00]} gxf4+ {[%emt 0:00:00]} 55. Kxf4 {[%emt 0:00:00] [#]} Kd4 $1 {[%emt 0:00:00]} 56. Be3+ {[%emt 0:00:00]} Kc3 {[%emt 0:00:00]} 57. Ke5 {[%emt 0:00:00]} d2 {[%emt 0:00:00]} 58. Bxd2+ {[%emt 0:00:00]} Kxd2 {[%emt 0:00:00] KB-KPP} 59. Kd6 {[%emt 0:00:00]} Bh1 {[%emt 0:00:00]} 60. Kc7 {[%emt 0:00:00]} c3 {[%emt 0:00:00]} 61. b7 {[%emt 0:00:00]} c2 {[%emt 0:00:00]} (61... Bxb7 $142 62. Kxb7 c2 63. Kxa6 c1=Q 64. Kb7 Qc5 65. a6 Qb5+ 66. Kc8 Qxa6+ 67. Kd7 Qf6 68. Kc8 Qe7 69. Kb8 Ke3 70. Kc8 Kd4 71. Kb8 Kd5 72. Kc8 Kc6 73. Kb8 Qb7#) 62. b8=Q {[%emt 0:00:00]} c1=Q+ {[%emt 0:00:00]} (62... c1=B 63. Qb4+ Kd3 64. Qd6+ Kc3 65. Qc5+ Kb2 66. Qd4+ Kc2 67. Qc5+ Kb1 68. Qd6 $18) 63. Kd8 {[%emt 0:00:00]} Qc6 {[%emt 0:00:00]} 64. Qb2+ {[%emt 0:00:00]} Kd3 {[%emt 0:00:00] ( -> ...Kc4)} 65. Qb3+ {[%emt 0:00:00]} (65. Qb4 $19) 65... Kd4 {[%emt 0:00:00] Black mates.} 66. Qb4+ {[%emt 0:00:00]} Kd5 {[%emt 0:00:00]} 67. Qd2+ {[%emt 0:00:00]} Kc5 {[%emt 0:00:00]} 68. Ke7 {[%emt 0:00:00]} Bd5 {[%emt 0:00:00]} 69. Qc3+ {[%emt 0:00:00]} Kb5 {[%emt 0:00:00]} 70. Qd2 {[%emt 0:00:00]} Qe6+ {[%emt 0:00:00]} 71. Kd8 {[%emt 0:00:00]} Qd6+ {[%emt 0:00:00]} 72. Ke8 {[%emt 0:00:00]} Bc6+ {Weighted Error Value: White=0.69/Black=0.29 (precise)} 0-1

[Event "CZE-ch U16 Open 2023"]
[Site "Teplice"]
[Date "2023.03.13"]
[Round "3.4"]
[White "Hladky, Tadeas"]
[Black "Simunek, Jakub Simon"]
[Result "1/2-1/2"]
[ECO "C07"]
[WhiteElo "1973"]
[BlackElo "1970"]
[Annotator "TA"]
[PlyCount "84"]
[EventDate "2023.03.09"]
[EventType "swiss"]
[EventCountry "CZE"]
[SourceTitle "playchess.com"]
[Source "ChessBase"]
[SourceQuality "1"]
[TimeControl "40/5400+30:1800+30"]

{[%evp 23,84,31,29,21,19,10,10,0,0,8,10,7,7,6,4,6,6,0,0,0,0,0,0,0,0,0,3,0,0,0,0,0,0,0,0,-5,-2,-8,-8,-12,0,-2,0,0,0,0,0,0,0,0,0,0,0,0,0,0,0,0,0,0,0,0,0]} 1. e4 {[%emt 0:00:03]} e6 {[%emt 0:00:12]} 2. d4 {[%emt 0:00:06]} d5 {[%emt 0:00:05]} 3. Nd2 {[%emt 0:00:03]} c5 {[%emt 0:00:29]} 4. exd5 {[%emt 0:00:12]} Qxd5 {[%emt 0:00:20]} 5. Ngf3 {[%emt 0:00:10]} cxd4 {[%emt 0:00:15]} 6. Bc4 {[%emt 0:00:09]} Qd6 {[%emt 0:00:10]} 7. O-O {[%emt 0:00:17]} Nf6 {[%emt 0:00:23]} 8. Nb3 {[%emt 0:00:11]} Nc6 {[%emt 0:00:37]} 9. Nbxd4 {[%emt 0:00:14]} Nxd4 {[%emt 0:00:20]} 10. Nxd4 {[%emt 0:00:17]} Be7 {[%emt 0:00:52]} 11. c3 {[%emt 0:00:56]} O-O {[%emt 0:00:43]} 12. Qf3 {[%emt 0:01:17]} Qc7 {[%emt 0:01:39]} 13. Bd3 {[%emt 0:01:22] C07: French Tarrasch: 3...c5, 4 Ngf3 and 4 exd5 Qxd5.} Bd7 {[%emt 0:04:12] The position is equal.} 14. Re1 {[%emt 0:04:11]} Rfd8 {[%emt 0:04:39]} 15. Bg5 {[%emt 0:15:19] [#]} h6 $146 {[%emt 0:18:52]} ({Predecessor:} 15... Be8 16. Rad1 h6 17. Bf4 Qb6 18. Rd2 Rac8 19. Rde2 Bc5 20. Be5 Be7 21. Qg3 Kf8 {0-1 Harikrishna,P (2716)-Salem,A (2690) Chess.com Rapid Wk7 Swiss 2022 (7)}) 16. Bf4 {[%emt 0:05:57]} Bd6 {[%emt 0:23:35]} 17. Bxd6 {[%emt 0:05:09]} (17. Bxh6 {is interesting.} Bxh2+ 18. Kh1 Bc6 19. Nxc6 Qxc6 20. Be2) 17... Qxd6 {[%emt 0:00:06]} 18. Rad1 {[%emt 0:00:47]} Qb6 {[%emt 0:03:44]} (18... e5 {with more complications.} 19. Nf5 Qb6 20. Rxe5 Bxf5 21. Rxf5 Qxb2 22. Rb5 Qxc3 23. Rxb7 Rac8) 19. Rd2 {[%emt 0:03:43]} Be8 {[%emt 0:04:08]} (19... Rac8 {is more complex.} 20. Qf4 Nd5 21. Qh4 Qc7) 20. Qd1 {[%emt 0:17:37]} Rd6 {[%emt 0:04:59]} 21. Qb3 {[%emt 0:19:03]} Qc7 {[%emt 0:08:53]} 22. Red1 {[%emt 0:02:56]} Rad8 {[%emt 0:02:02]} 23. Qc2 {[%emt 0:06:41]} Kf8 {[%emt 0:02:47]} 24. Be2 {[%emt 0:07:40]} a6 {[%emt 0:02:59]} 25. Nf3 {[%emt 0:00:52]} Bc6 {[%emt 0:02:56]} 26. Rxd6 {[%emt 0:02:07]} Rxd6 {[%emt 0:00:07]} 27. Rxd6 {[%emt 0:00:13]} Qxd6 {[%emt 0:00:07]} 28. Qd2 {[%emt 0:00:07]} Ke7 {[%emt 0:02:06]} 29. Qd4 {[%emt 0:03:24]} Bxf3 {[%emt 0:03:00]} 30. Qxd6+ {[%emt 0:00:06]} Kxd6 {[%emt 0:00:04]} 31. Bxf3 $11 {[%emt 0:00:05][%mdl 4096] Endgame KB-KN} b6 {[%emt 0:00:33]} 32. Kf1 {[%emt 0:01:23]} e5 {[%emt 0:02:07]} 33. Bb7 {[%emt 0:00:05]} a5 {[%emt 0:00:06]} 34. Ke2 {[%emt 0:01:31]} Nd5 {[%emt 0:03:37]} 35. g3 {[%emt 0:02:22]} f5 {[%emt 0:00:55]} 36. Kd3 {[%emt 0:00:35]} g5 {[%emt 0:03:21]} 37. Kc4 {[%emt 0:00:42]} Nf6 {[%emt 0:00:59]} 38. h3 {[%emt 0:00:04]} f4 {[%emt 0:01:28]} 39. gxf4 {[%emt 0:00:23]} exf4 {[%emt 0:00:29]} 40. b4 {[%emt 0:00:36]} axb4 {[%emt 0:00:42]} 41. cxb4 {[%emt 0:30:06]} h5 {[%emt 0:14:49]} 42. a4 {[%emt 0:00:00]} g4 {[%emt 0:10:45] An uneventful encounter.   Weighted Error Value: White=0.02 (flawless) /Black=0.01 (flawless)} 1/2-1/2

[Event "CZE-ch U16 Open 2023"]
[Site "Teplice"]
[Date "2023.03.13"]
[Round "3.5"]
[White "Tillmann, Stanislav"]
[Black "Mametev, Artem"]
[Result "1/2-1/2"]
[ECO "B92"]
[WhiteElo "1907"]
[BlackElo "2074"]
[Annotator "TA"]
[PlyCount "89"]
[EventDate "2023.03.09"]
[EventType "swiss"]
[EventCountry "CZE"]
[SourceTitle "playchess.com"]
[Source "ChessBase"]
[SourceQuality "1"]
[TimeControl "40/5400+30:1800+30"]

{[%evp 14,89,0,0,0,0,0,0,6,6,0,0,21,0,-9,0,7,0,15,18,0,0,45,48,81,52,115,117,108,45,36,0,100,80,66,12,12,16,16,13,35,-5,-5,-2,-5,-79,13,-8,-18,-15,-12,-9,9,9,10,15,6,0,0,0,248,248,241,214,202,31,210,210,264,268,1081,631,556,151,148,144,135,124]} 1. e4 {[%emt 0:00:02]} c5 {[%emt 0:00:04]} 2. Nf3 {[%emt 0:00:05]} d6 {[%emt 0:00:04]} 3. d4 {[%emt 0:00:05]} cxd4 {[%emt 0:00:04]} 4. Nxd4 {[%emt 0:00:03]} Nf6 {[%emt 0:00:06]} 5. Nc3 {[%emt 0:00:05]} a6 {[%emt 0:00:33]} 6. Be2 {[%emt 0:00:26]} e5 {[%emt 0:00:06]} 7. Nf3 {[%emt 0:00:11]} Be7 {[%emt 0:01:58]} 8. Bg5 {[%emt 0:00:52] is the new trend.} Be6 {[%emt 0:00:52] B92: Sicilian Najdorf: 6 Be2.} 9. Bxf6 {[%emt 0:01:36]} Bxf6 {[%emt 0:00:04]} 10. O-O {[%emt 0:00:34]} Be7 {[%emt 0:10:44] The position is equal.} 11. Nd5 {[%emt 0:01:57]} Nd7 {[%emt 0:00:57]} 12. Bc4 {[%emt 0:10:01]} O-O {[%emt 0:25:07] [#]} 13. Nxe7+ $146 {[%emt 0:10:01]} ({Predecessor:} 13. Qe2 b5 14. Bb3 Nc5 15. Rfd1 Nxb3 16. axb3 f5 17. exf5 Bxf5 18. Ne3 Qc8 19. Nxf5 Qxf5 {½-½ Vaibhav,S (2590)-Sjugirov,S (2663) PRO League Stage rapid 2019 (10)}) 13... Qxe7 {[%emt 0:00:05]} 14. Bxe6 {[%emt 0:00:05]} fxe6 {[%emt 0:00:29]} 15. c4 {[%emt 0:02:07]} Nc5 {[%emt 0:08:34]} (15... b5 $5 {[%cal Rb5c4]}) 16. Re1 {[%emt 0:03:56]} Rf4 {[%emt 0:01:38]} 17. Qc2 {[%emt 0:01:24]} Raf8 {[%emt 0:02:50]} 18. b4 {[%emt 0:00:49]} Nd7 {[%emt 0:00:22]} 19. Rad1 {[%emt 0:01:52]} Nf6 {[%emt 0:05:20]} (19... Rc8 $14) 20. Qd3 $16 {[%emt 0:03:03]} Ne8 {[%emt 0:11:11]} 21. Qc3 {[%emt 0:25:14]} (21. h3 $16) 21... Nf6 $14 {[%emt 0:09:14]} 22. Qd3 {[%emt 0:00:53]} (22. Qc2 $14) 22... Ne8 $1 $16 {[%emt 0:12:12]} 23. c5 {[%emt 0:07:53]} dxc5 {[%emt 0:00:53]} 24. Qd7 {[%emt 0:00:09]} (24. bxc5 $14 Qxc5 25. Qd7) 24... Qxd7 $11 {[%emt 0:01:00]} 25. Rxd7 {[%emt 0:00:03]} Nf6 {[%emt 0:00:50]} 26. Rxb7 {[%emt 0:00:12] Threatens to win with Ng5.} Nxe4 {[%emt 0:01:55]} 27. bxc5 {[%emt 0:01:28]} Nxc5 {[%emt 0:00:12]} 28. Rc7 {[%emt 0:01:18]} Nd3 {[%emt 0:00:35]} 29. Rb1 {[%emt 0:02:19]} (29. Rd1 $11 {remains equal.} e4 30. Ng5) 29... e4 {[%emt 0:01:20] [#]} (29... h6 $17) 30. Rbb7 $1 {[%emt 0:00:13][%mdl 1024] White has compensation.} Rg4 {[%emt 0:02:13]} (30... exf3 $2 {is a self mate.} 31. Rxg7+ Kh8 32. Rxh7+ Kg8 33. Rbg7#) 31. Nd4 {[%emt 0:03:25]} Nf4 {[%emt 0:02:54]} 32. g3 {[%emt 0:01:03]} e5 {[%emt 0:00:31]} 33. Nc6 {[%emt 0:00:50]} Nh3+ {[%emt 0:01:10][%mdl 64] Discovered Attack} 34. Kg2 {[%emt 0:00:52]} Nf4+ {[%emt 0:00:11]} 35. Kh1 {[%emt 0:01:36][%cal Oc6e5] Strongly threatening Nxe5!} Nd3 {[%emt 0:00:24]} 36. h3 {[%emt 0:01:07][%cal Bh2h3,Bh3h4][%mdl 32]} Nxf2+ {[%emt 0:00:22] [#]} (36... Rg5 $1 $11 {and Black is okay.}) 37. Kg2 $1 $18 {[%emt 0:00:08]} Rg5 {[%emt 0:00:22]} 38. h4 {[%emt 0:00:25]} Rh5 {[%emt 0:00:51]} 39. Rxg7+ {[%emt 0:00:38]} Kh8 {[%emt 0:00:01] [#] This move loses the game for Black.} 40. Nxe5 $1 {[%emt 0:02:52][%mdl 576] Deflection} e3 {[%emt 0:00:32]} (40... Rxe5 $2 {leads to mate.} 41. Rxh7+ Kg8 42. Rbg7#) (40... Nd3 41. Nxd3) 41. Rge7 {[%emt 0:35:19] Black must now prevent Nd7.} Nd1 $2 {[%emt 0:16:19]} (41... Kg8 42. Nf3 (42. Nd7 Rf7 $16) 42... Rh6) 42. Ng4 {[%emt 0:00:00][%cal Og4f6] White threatens Nf6! and mate.} Kg8 {[%emt 0:03:08]} 43. Nxe3 {[%emt 0:00:00]} (43. Rg7+ $18 {has better winning chances.} Kh8 44. Rge7) 43... Nxe3+ $16 {[%emt 0:00:26]} 44. Rxe3 {[%emt 0:00:00] aiming for Ree7.} Rf7 {[%emt 0:00:26]} 45. Re8+ {[%emt 0:00:00] Weighted Error Value: White=0.42/Black=0.22 (precise)} 1/2-1/2